bitfinex/quotes_ETHUSD_20250210
["timestamp","ask_amount","ask_price","bid_price","bid_amount"]
[1739146148597,3.77586,2648.5,2648.1,4.7924898]
[1739146148835,0.77026377,2648.7,2648.2,3.77611]
[1739146149018,11.73356905,2649.1,2648.7,3.77532]
[1739146149333,11.73356905,2649.1,2648.5,8.5681298]
[1739146149334,0.0471903,2649.0,2648.5,4.7924898]
[1739146149476,16.26782256,2649.1,2648.5,4.7924898]
[1739146149676,16.26782256,2649.1,2648.5,8.5681798]
[1739146149677,11.73356905,2649.1,2648.5,8.5681798]
[1739146149911,11.73356905,2649.1,2648.5,4.7924898]
[1739146150110,11.73356905,2649.1,2648.5,8.5680798]
[1739146150328,11.73356905,2649.1,2648.5,12.3436898]
[1739146150480,11.73356905,2649.1,2648.5,8.5680798]
[1739146151584,11.73356905,2649.1,2648.7,2.0]
[1739146151916,11.73356905,2649.1,2649.0,5.775]
[1739146152119,3.77377,2649.9,2649.0,5.775]
[1739146152286,3.77413,2649.7,2649.0,2.0]
[1739146152481,0.04718295,2649.8,2648.9,4.7924898]
[1739146152786,3.77543,2648.7,2648.0,6.5]
[1739146152985,3.77543,2648.7,2648.1,3.77629]
[1739146153186,3.77543,2648.7,2648.0,6.5]
[1739146153389,3.77558,2648.6,2648.0,10.27641]
[1739146153685,3.77626,2648.2,2647.7,4.7924898]
[1739146153894,0.1,2649.1,2647.2,0.764]
[1739146154093,0.18850262,2649.5,2648.8,3.77529]
[1739146154316,0.18850262,2649.5,2648.7,4.7924898]
[1739146154317,0.18850262,2649.5,2649.0,3.77494]
[1739146154520,0.18850262,2649.5,2649.4,4.7924898]
[1739146154720,3.77287,2650.5,2649.4,4.7924898]
[1739146154896,3.77411,2649.7,2649.0,8.5674498]
[1739146155096,3.77336,2650.2,2649.0,10.5674498]
[1739146155302,0.377287,2650.4,2649.5,3.77421]
[1739146155303,3.77353,2650.1,2649.5,3.77421]
[1739146155514,3.77359,2650.0,2649.4,4.7924898]
[1739146155822,3.77353,2650.1,2649.4,8.5668198]
[1739146155990,3.77359,2650.0,2649.4,8.5668198]
[1739146156329,0.05062523,2650.0,2649.4,4.7924898]
[1739146156522,3.77292,2650.5,2649.8,3.77376]
[1739146156723,3.77292,2650.5,2649.9,3.77361]
[1739146157096,4.5425,2651.2,2650.2,4.7924898]
[1739146157316,3.77254,2650.8,2650.2,4.7924898]
[1739146157597,3.77316,2650.3,2649.8,4.7924898]
[1739146157804,3.77373,2649.9,2649.4,4.7924898]
[1739146158003,0.03830814,2650.0,2649.4,8.5669198]
[1739146158209,0.03830814,2650.0,2649.4,4.7924898]
[1739146158210,3.81195814,2650.0,2649.4,4.7924898]
[1739146158609,3.77282,2650.6,2649.4,4.7924898]
[1739146158610,3.77282,2650.6,2649.9,3.77358]
[1739146158805,3.77244,2650.8,2649.9,3.77358]
[1739146158995,3.77288,2650.5,2649.9,3.77358]
[1739146159531,3.77328,2650.3,2649.8,4.7924898]
[1739146159729,0.03830814,2650.2,2649.5,3.77427]
[1739146159932,3.77354,2650.1,2649.5,3.77427]
[1739146160128,0.7705,2650.9,2649.4,4.7924898]
[1739146160430,3.77245,2650.8,2650.2,3.77328]
[1739146160730,0.03830814,2650.7,2650.2,3.77328]
[1739146160928,0.8315,2651.5,2650.3,3.77315]
[1739146161130,3.77175,2651.3,2650.6,9.3911998]
[1739146161329,0.03830814,2651.2,2650.6,4.7924898]
[1739146161533,3.77215,2651.1,2650.6,4.7924898]
[1739146161697,7.54474,2650.9,2650.3,0.8261]
[1739146162026,3.77233,2650.9,2650.2,4.7924898]
[1739146162353,3.77274,2650.6,2649.9,0.8261]
[1739146162530,3.77274,2650.6,2649.8,6.7924898]
[1739146162531,3.77319,2650.3,2649.8,4.7924898]
[1739146162734,0.377233,2650.9,2649.8,12.3401098]
[1739146162943,3.77288,2650.5,2649.9,3.77371]
[1739146163241,0.03830814,2650.4,2649.8,4.7924898]
[1739146163444,3.77307,2650.4,2649.8,4.7924898]
[1739146163624,3.77307,2650.4,2649.8,8.5663198]
[1739146163821,0.05291819,2650.3,2650.2,5.7733]
[1739146164015,0.05291819,2650.3,2650.2,11.3918898]
[1739146164210,3.77199,2651.2,2650.7,3.77257]
[1739146164415,3.77163,2651.4,2650.8,3.77235]
[1739146164637,0.05283006,2651.1,2650.8,3.77235]
[1739146164835,3.77163,2651.4,2650.8,3.77235]
[1739146165044,0.05283006,2651.0,2650.8,3.77235]
[1739146165345,0.05283006,2650.9,2650.8,3.77235]
[1739146165543,3.77163,2651.4,2650.8,3.77235]
[1739146165707,0.05301987,2650.9,2650.6,8.5651598]
[1739146165912,3.7719,2651.2,2650.7,3.77258]
[1739146166161,0.05302665,2651.1,2650.7,3.77258]
[1739146167222,0.47382746,2651.1,2650.6,4.7924898]
[1739146167522,3.77225,2651.0,2650.6,4.7924898]
[1739146168132,0.05302665,2650.9,2650.6,4.7924898]
[1739146168337,0.05302665,2650.9,2650.8,4.59854]
[1739146168827,3.77124,2651.7,2650.9,5.77218]
[1739146169146,7.54301,2651.5,2650.9,5.77218]
[1739146169447,7.54305,2651.5,2650.9,3.77227]
[1739146169645,3.77092,2651.9,2650.6,4.7924898]
[1739146169950,3.77203,2651.1,2650.6,8.5651998]
[1739146170156,3.77197,2651.2,2650.6,4.7924898]
[1739146170452,0.0533384,2651.0,2650.9,3.77226]
[1739146170653,3.77133,2651.6,2651.0,3.77207]
[1739146170955,3.77133,2651.6,2651.0,12.3366398]
[1739146171157,0.05334517,2651.5,2651.0,8.5645498]
[1739146171460,3.82480517,2651.5,2651.0,8.5645498]
[1739146171661,0.05334517,2651.5,2651.4,8.5640798]
[1739146171967,0.8315,2652.5,2651.6,3.7713]
[1739146171968,3.77059,2652.1,2651.6,3.7713]
[1739146172453,0.05387385,2652.0,2651.6,3.7713]
[1739146172681,0.05387385,2652.0,2651.5,3.77137]
[1739146172856,3.82468385,2652.0,2651.5,3.77142]
[1739146173158,0.05387385,2652.0,2651.6,3.77123]
[1739146173354,0.47462838,2652.0,2651.1,0.8261]
[1739146173555,3.7714,2651.6,2651.1,2.8261]
[1739146173757,7.54281,2651.6,2651.0,8.5645698]
[1739146173961,0.8315,2651.8,2651.1,2.0]
[1739146174253,3.77047,2652.2,2651.1,2.0]
[1739146174254,0.05387385,2651.5,2651.3,3.7717]
[1739146174454,3.77099,2651.9,2651.3,3.7717]
[1739146174661,0.05387385,2651.4,2651.3,3.7717]
[1739146174832,0.8315,2652.2,2651.4,4.7924898]
[1739146175032,3.77111,2651.8,2651.4,4.7924898]
[1739146175235,0.8315,2652.2,2651.4,4.7924898]
[1739146175435,1.291683,2652.2,2651.4,6.7924898]
[1739146175644,3.77026,2652.4,2651.4,6.7924898]
[1739146175645,3.77026,2652.4,2651.7,3.77116]
[1739146175845,3.77002,2652.5,2651.6,3.77116]
[1739146176180,0.03830814,2652.4,2651.5,0.8261]
[1739146176320,3.77118,2651.7,2651.4,4.7924898]
[1739146176526,3.77103,2651.8,2651.2,3.77175]
[1739146176759,7.54216,2651.8,2651.1,3.77201]
[1739146176937,7.54216,2651.8,2651.2,3.77177]
[1739146177272,3.7703,2652.4,2651.8,3.77099]
[1739146177512,4.5076259,2652.9,2652.2,8.5627998]
[1739146177648,3.76975,2652.7,2652.2,4.7924898]
[1739146177855,3.77,2652.6,2652.2,4.7924898]
[1739146178255,3.77028,2652.4,2651.9,0.7744]
[1739146178499,7.53994,2652.6,2652.0,3.77071]
[1739146178779,3.9467722,2653.3,2652.9,2.0]
[1739146178780,0.1475722,2653.3,2652.9,2.0]
[1739146178984,3.9164722,2653.3,2652.9,4.7924898]
[1739146179148,3.9164722,2653.3,2652.6,5.76979]
[1739146179346,0.1475722,2653.3,2652.8,3.76946]
[1739146179575,3.9165022,2653.3,2652.6,5.76977]
[1739146179959,3.76958,2652.9,2652.3,0.7744]
[1739146180191,3.76983,2652.7,2652.1,4.7924898]
[1739146180750,3.76984,2652.7,2652.1,4.7924898]
[1739146180987,3.76952,2652.9,2652.1,8.5629698]
[1739146181147,0.7992,2653.0,2652.5,4.7924898]
[1739146181351,3.76914,2653.2,2652.5,8.5625098]
[1739146181580,3.9165522,2653.3,2652.6,5.76981]
[1739146181795,0.1475722,2653.3,2652.7,3.76973]
[1739146181976,0.1475722,2653.3,2652.9,4.7924898]
[1739146182279,0.1475722,2653.3,2652.6,2.7744]
[1739146182280,3.76949,2652.9,2652.6,0.7744]
[1739146182453,0.03830814,2652.8,2652.5,4.7924898]
[1739146182652,3.76988,2652.6,2652.5,4.7924898]
[1739146182851,0.05376121,2652.8,2652.5,4.7924898]
[1739146182852,3.76988,2652.7,2652.5,4.7924898]
[1739146183053,3.76949,2652.9,2652.5,4.7924898]
[1739146183283,0.05376121,2652.6,2652.5,10.5625098]
[1739146183482,3.76924,2653.1,2652.6,3.76987]
[1739146183707,0.1475722,2653.3,2652.5,6.7924898]
[1739146183988,3.77045,2652.2,2652.1,4.7924898]
[1739146184169,3.77032,2652.3,2651.8,0.7744]
[1739146184564,3.77032,2652.3,2651.8,6.54538]
[1739146184796,3.77011,2652.5,2652.1,4.7924898]
[1739146184972,7.54024,2652.5,2652.1,4.7924898]
[1739146185172,3.77011,2652.5,2652.1,4.7924898]
[1739146185568,3.77017,2652.4,2652.1,4.7924898]
[1739146185779,3.76942,2653.0,2652.1,4.7924898]
[1739146185979,0.376942,2652.9,2652.1,4.7924898]
[1739146186176,3.77026,2652.4,2652.1,4.7924898]
[1739146186399,3.76995,2652.6,2652.1,4.7924898]
[1739146186703,3.82379121,2652.5,2652.1,4.7924898]
[1739146186901,0.05376121,2652.5,2652.2,3.77043]
[1739146187199,3.76964,2652.8,2652.2,3.77043]
[1739146187403,3.76964,2652.8,2652.1,6.7924898]
[1739146187404,3.82401121,2652.4,2652.1,4.7924898]
[1739146187619,7.54054,2652.4,2652.1,4.7924898]
[1739146187830,0.05376121,2652.3,2652.1,4.7924898]
[1739146188102,3.77046,2652.2,2651.8,0.7744]
[1739146188776,0.05376121,2652.1,2651.8,0.7744]
[1739146189583,3.82440121,2652.1,2651.8,0.7744]
[1739146190404,3.77073,2652.0,2651.7,4.7924898]
[1739146190920,3.77025,2652.4,2651.7,8.5635198]
[1739146191217,3.77025,2652.4,2651.9,3.77082]
[1739146191529,0.05376121,2652.3,2652.2,3.77045]
[1739146191671,0.05376121,2652.3,2652.2,4.35814466]
[1739146191870,0.1475722,2653.3,2652.1,7.5834898]
[1739146192107,3.77031,2652.3,2652.2,0.3415842]
[1739146192283,3.82375944,2652.3,2652.2,0.3415842]
[1739146193326,0.05344944,2652.3,2652.2,0.3415842]
[1739146193520,3.77007,2652.5,2652.2,0.3415842]
[1739146193830,0.05368666,2652.4,2652.2,3.77044]
[1739146194323,0.05334101,2652.3,2652.2,3.77044]
[1739146194528,4.55761,2653.1,2652.6,5.76985]
[1739146194844,0.05334101,2653.0,2652.6,5.76985]
[1739146195197,0.05334101,2653.0,2652.5,8.5623998]
[1739146195411,0.1475722,2653.3,2652.9,8.5619198]
[1739146195612,3.76924,2653.1,2652.9,4.7924898]
[1739146196054,3.76931,2653.0,2652.5,4.7924898]
[1739146196195,0.1475722,2653.3,2652.7,5.76964]
[1739146196196,3.76911,2653.2,2652.7,5.76964]
[1739146196512,0.1475722,2653.3,2652.9,4.7924898]
[1739146196714,3.9165422,2653.3,2652.9,4.7924898]
[1739146196900,0.1475722,2653.3,2653.1,2.7568]
[1739146197107,0.1475722,2653.3,2653.1,0.7568]
[1739146197419,3.76907,2653.2,2652.9,4.7924898]
[1739146197804,0.1475722,2653.3,2652.9,4.7924898]
[1739146198225,3.76903,2653.2,2652.9,4.7924898]
[1739146198609,1.0,2653.0,2652.9,4.7924898]
[1739146198805,1.0,2653.0,2652.8,2.0]
[1739146198806,1.0,2653.0,2652.6,0.7568]
[1739146199116,3.76958,2652.9,2652.5,4.7924898]
[1739146199303,4.76932,2653.0,2652.5,4.7924898]
[1739146199304,3.76979,2652.7,2652.5,4.7924898]
[1739146199509,4.76938,2653.0,2652.5,4.7924898]
[1739146199705,1.0,2653.0,2652.5,4.7924898]
[1739146200026,3.76972,2652.8,2652.5,4.7924898]
[1739146200233,0.476972,2652.8,2652.3,2.0]
[1739146200393,0.476972,2652.8,2652.1,4.7924898]
[1739146200394,3.77004,2652.5,2652.1,4.7924898]
[1739146200595,3.76945,2652.9,2652.1,6.7924898]
[1739146200835,3.7699,2652.6,2652.1,10.5630098]
[1739146201136,1.0,2653.0,2652.5,4.7924898]
[1739146201495,1.0,2653.0,2652.6,0.7568]
[1739146201830,1.0,2653.0,2652.9,4.7924898]
[1739146202836,1.0,2653.0,2652.6,4.52661]
[1739146203132,1.0,2653.0,2652.9,8.5619398]
[1739146203296,1.0,2653.0,2652.9,9.1119398]
[1739146204197,1.0,2653.0,2652.9,4.7924898]
[1739146204622,1.0,2653.0,2652.9,5.13500283]
[1739146205036,4.76931,2653.0,2652.9,5.13500283]
[1739146205207,4.76931,2653.0,2652.9,3.03e-06]
[1739146205531,3.77026,2652.4,2652.1,0.7841]
[1739146206104,0.7901,2652.5,2651.7,5.5503898]
[1739146206304,0.7901,2652.5,2651.7,4.7924898]
[1739146206499,3.77086,2652.0,2651.7,4.7924898]
[1739146206704,3.77052,2652.2,2651.7,4.7924898]
[1739146206938,0.05397128,2652.1,2651.7,4.7924898]
[1739146207146,3.77074,2652.0,2651.7,4.7924898]
[1739146207538,0.05397128,2651.9,2651.7,4.7924898]
[1739146207738,3.77065,2652.1,2651.7,4.7924898]
[1739146207928,3.77099,2651.9,2651.7,4.7924898]
[1739146208331,0.05397128,2651.8,2651.7,4.7924898]
[1739146208646,0.05397128,2651.8,2651.4,0.7579]
[1739146208827,3.82507128,2651.8,2651.4,0.7579]
[1739146209025,3.77097,2651.9,2651.5,2.0]
[1739146209243,5.823248,2653.0,2650.9,4.7924898]
[1739146209244,0.7901,2651.6,2650.9,4.7924898]
[1739146209414,3.77209,2651.1,2650.9,4.7924898]
[1739146209612,3.77181,2651.3,2650.9,4.7924898]
[1739146210246,3.82587128,2651.2,2650.9,4.7924898]
[1739146210453,3.77205,2651.1,2650.9,4.7924898]
[1739146210853,3.77225,2651.0,2650.5,4.7924898]
[1739146211017,3.77231,2650.9,2650.5,4.7924898]
[1739146211218,0.05397128,2651.0,2650.6,2.0]
[1739146211565,3.77204,2651.1,2650.6,2.0]
[1739146211566,0.05397128,2650.9,2650.6,2.0]
[1739146211852,3.77196,2651.2,2650.8,4.7924898]
[1739146212034,3.7723,2650.9,2650.4,4.7924898]
[1739146212218,3.77191,2651.2,2650.6,2.0]
[1739146212420,3.77191,2651.2,2650.6,5.7726]
[1739146212920,0.7901,2651.6,2650.4,4.7924898]
[1739146213117,3.77227,2651.0,2650.4,8.5653698]
[1739146213345,3.77244,2650.8,2650.4,4.7924898]
[1739146213776,3.77287,2650.5,2650.4,4.7924898]
[1739146214047,3.77277,2650.6,2650.4,4.7924898]
[1739146214560,3.77287,2650.5,2650.4,4.7924898]
[1739146214853,3.7733,2650.2,2650.0,4.7924898]
[1739146215065,3.7733,2650.2,2649.6,6.7924898]
[1739146215066,3.77362,2650.0,2649.6,6.7924898]
[1739146215564,3.77325,2650.3,2649.7,3.7739]
[1739146215765,3.77269,2650.7,2650.0,10.5659298]
[1739146216067,3.77301,2650.4,2650.0,6.7924898]
[1739146216238,0.0521537,2650.6,2650.0,4.7924898]
[1739146216440,3.77269,2650.7,2649.7,2.0]
[1739146216641,3.77269,2650.7,2648.8,3.77525]
[1739146216642,3.77441,2649.5,2649.0,2.0]
[1739146216842,3.77395,2649.8,2649.2,8.5670898]
[1739146217145,3.8262437,2649.7,2649.2,4.7924898]
[1739146217463,0.03830814,2649.6,2649.2,4.7924898]
[1739146217759,3.77458,2649.3,2648.9,2.7579]
[1739146217957,0.0521537,2649.2,2648.9,2.7579]
[1739146218176,3.77458,2649.3,2648.9,2.7579]
[1739146218326,3.7749,2649.1,2648.9,0.7579]
[1739146218531,0.0521537,2649.0,2648.8,4.7924898]
[1739146219664,0.03830814,2649.2,2648.8,4.7924898]
[1739146219864,0.0521537,2648.9,2648.5,2.7579]
[1739146220078,3.77476,2649.2,2648.4,10.5682698]
[1739146220284,0.0521537,2648.8,2648.7,5.77543]
[1739146220457,7.54877,2649.5,2648.9,4.53291]
[1739146220652,3.77438,2649.5,2648.9,9.3253998]
[1739146220871,0.0521537,2649.4,2649.3,8.5670698]
[1739146221073,4.5635,2650.2,2649.3,8.5670698]
[1739146221391,0.7901,2650.2,2649.6,2.0]
[1739146221543,3.77415,2649.6,2649.3,4.7924898]
[1739146221876,3.77392,2649.8,2649.3,4.7924898]
[1739146222178,3.77383,2649.9,2649.3,10.5669798]
[1739146222342,0.0521537,2649.7,2649.3,10.5669798]
[1739146222538,0.7901,2650.2,2649.3,4.7924898]
[1739146222767,3.77426,2649.6,2648.9,7.5503898]
[1739146222945,0.46947184,2650.1,2648.9,7.5503898]
[1739146222946,3.7746,2649.3,2648.9,7.5503898]
[1739146223146,0.0521537,2649.2,2648.9,4.7924898]
[1739146223348,3.77463,2649.3,2648.9,4.7924898]
[1739146223544,0.0521537,2649.2,2648.9,4.7924898]
[1739146223747,3.77495,2649.1,2648.9,4.7924898]
[1739146223946,0.0521537,2649.0,2648.9,4.7924898]
[1739146224584,3.77545,2648.7,2648.5,4.7924898]
[1739146224795,3.77561,2648.6,2648.2,0.8109]
[1739146225077,0.8139,2648.9,2647.8,10.27662]
[1739146225078,0.03830814,2648.8,2647.8,7.3109]
[1739146225266,3.77637,2648.1,2647.8,6.5]
[1739146225463,3.77657,2647.9,2647.8,6.5]
[1739146225674,0.0521537,2648.0,2647.7,4.7924898]
[1739146225979,0.0521537,2648.0,2647.6,2.0]
[1739146225980,0.0521537,2647.9,2647.5,5.436]
[1739146226165,3.77529,2648.8,2647.5,5.436]
[1739146226166,3.776,2648.3,2647.5,5.436]
[1739146226370,3.7765,2648.0,2647.5,7.436]
[1739146226566,3.7765,2648.0,2647.5,11.2131]
[1739146226745,0.04733927,2647.9,2647.7,4.7924898]
[1739146226945,3.77602,2648.3,2647.7,8.5692498]
[1739146227165,0.04734607,2648.2,2647.8,2.03776503]
[1739146227366,3.77606,2648.3,2647.8,2.0]
[1739146227777,0.04747527,2648.2,2647.8,2.0]
[1739146227981,7.55163,2648.5,2647.9,3.77657]
[1739146228278,0.04747527,2648.1,2647.9,3.77657]
[1739146228481,4.58935,2648.7,2648.0,3.77643]
[1739146228812,0.04747527,2648.6,2648.5,4.7924898]
[1739146228949,3.77515,2648.9,2648.5,4.7924898]
[1739146229286,3.77515,2648.9,2648.1,9.3795898]
[1739146229287,3.82281527,2648.8,2648.1,9.3795898]
[1739146229453,3.82281527,2648.8,2648.2,3.77609]
[1739146229802,3.82281527,2648.8,2648.1,9.3795898]
[1739146229964,0.04747527,2648.8,2648.4,3.77574]
[1739146230145,0.04747527,2648.8,2648.5,4.7924898]
[1739146230482,0.04747527,2648.8,2648.7,3.77543]
[1739146230693,0.77185686,2649.7,2649.0,0.55]
[1739146230985,3.7742,2649.6,2649.3,4.7924898]
[1739146231283,3.77443,2649.4,2649.3,4.7924898]
[1739146231582,3.82118997,2649.4,2649.3,4.7924898]
[1739146231762,0.04675997,2649.4,2649.3,4.7924898]
[1739146232087,3.77377,2649.9,2649.3,8.5670698]
[1739146232254,0.08249868,2649.4,2649.3,4.7924898]
[1739146232449,0.03830814,2649.8,2649.3,4.7924898]
[1739146232677,0.08249868,2649.4,2649.3,4.7924898]
[1739146232982,0.08268907,2649.4,2649.3,8.5669398]
[1739146233184,3.77353,2650.1,2649.6,2.0]
[1739146233381,7.54706,2650.1,2649.5,0.55]
[1739146233549,3.77424,2649.6,2649.3,5.6033898]
[1739146233747,3.77424,2649.6,2649.3,4.7924898]
[1739146233974,3.77424,2649.6,2649.0,4.58582]
[1739146233975,0.08268907,2649.5,2649.0,4.5858]
[1739146234210,3.77424,2649.6,2649.0,0.8109]
[1739146234376,3.77388,2649.8,2649.3,4.7924898]
[1739146234580,3.77388,2649.8,2649.4,0.55]
[1739146234780,0.08268907,2649.7,2649.4,0.55]
[1739146235106,3.77372,2649.9,2649.3,4.7924898]
[1739146235307,3.85683907,2649.6,2649.3,4.7924898]
[1739146235478,0.38565691,2649.7,2649.3,4.7924898]
[1739146235679,3.85700907,2649.5,2649.3,4.7924898]
[1739146235907,3.77443,2649.4,2649.0,0.8109]
[1739146236114,0.03830814,2649.3,2648.6,0.7597]
[1739146236318,0.03830814,2649.3,2648.5,4.7924898]
[1739146236319,0.12099721,2649.3,2648.5,4.7924898]
[1739146236478,3.77486,2649.1,2648.5,4.7924898]
[1739146236679,0.03830814,2649.0,2648.5,4.7924898]
[1739146236878,3.77548,2648.7,2648.5,4.7924898]
[1739146237181,0.08268907,2648.6,2648.2,4.53577]
[1739146237382,7.55,2649.0,2648.2,0.7597]
[1739146237695,7.55,2649.0,2648.2,3.77609]
[1739146237696,3.77551,2648.7,2648.2,3.77609]
[1739146237885,3.7756,2648.6,2648.1,6.7924898]
[1739146238078,3.7756,2648.6,2648.1,4.7924898]
[1739146238079,3.77595,2648.4,2648.1,4.7924898]
[1739146238338,0.03830814,2648.6,2647.6,3.77697]
[1739146238339,3.77614,2648.2,2647.7,4.7924898]
[1739146238476,3.77614,2648.2,2647.5,6.02714452]
[1739146238477,0.03830814,2648.1,2647.5,6.02714452]
[1739146238676,0.08218581,2648.1,2647.6,3.77698]
[1739146238934,0.08218581,2648.1,2647.7,4.7924898]
[1739146239140,0.08218581,2648.1,2647.7,8.5692498]
[1739146239348,0.7866,2648.9,2648.0,2.0]
[1739146239538,3.77529,2648.8,2648.3,4.7924898]
[1739146239739,3.77549,2648.7,2648.3,4.7924898]
[1739146240039,3.7761,2648.3,2647.9,4.7924898]
[1739146240204,3.77572,2648.5,2647.9,8.5690298]
[1739146240410,0.7866,2648.9,2648.1,3.77623]
[1739146240411,4.56182,2648.9,2648.1,3.77623]
[1739146240609,3.77545,2648.7,2648.1,3.77623]
[1739146240804,3.77529,2648.8,2648.2,3.77604]
[1739146241039,3.77522,2648.9,2648.3,8.5683998]
[1739146241340,0.7866,2649.2,2648.4,2.55]
[1739146241542,3.77572,2648.5,2648.4,0.03775739]
[1739146241712,3.77572,2648.5,2647.9,4.7924898]
[1739146241713,3.77608,2648.3,2647.9,4.7924898]
[1739146241907,3.77577,2648.5,2647.9,8.5690498]
[1739146242122,3.77603,2648.3,2647.9,4.7924898]
[1739146242523,3.77615,2648.2,2647.9,4.7924898]
[1739146243143,3.7759,2648.4,2647.9,4.7924898]
[1739146243306,5.31715869,2649.0,2648.3,8.5683898]
[1739146243507,4.56169,2649.0,2648.4,2.55]
[1739146243718,3.77509,2649.0,2648.4,2.55]
[1739146243921,3.77565,2648.6,2648.3,4.7924898]
[1739146244307,3.77565,2648.6,2647.9,3.77651]
[1739146244308,3.77615,2648.2,2647.9,4.7924898]
[1739146244645,0.1186946,2648.1,2647.1,4.7924898]
[1739146244845,3.77757,2647.2,2647.1,4.7924898]
[1739146245006,0.7866,2647.9,2646.6,8.5]
[1739146245007,3.7778,2647.1,2646.7,5.5521898]
[1739146245203,3.77812,2646.9,2646.7,4.7924898]
[1739146245704,7.55592,2647.0,2646.7,4.7924898]
[1739146246009,3.77794,2647.0,2646.7,4.7924898]
[1739146246210,3.77825,2646.8,2646.4,2.0]
[1739146246432,3.77847,2646.6,2646.4,2.0]
[1739146246618,3.77847,2646.6,2646.3,5.5521898]
[1739146246619,3.77847,2646.6,2646.3,4.7924898]
[1739146246830,0.08018216,2646.5,2646.3,4.7924898]
[1739146247031,3.77871,2646.4,2645.9,5.5521898]
[1739146247229,3.77871,2646.4,2645.9,7.5521898]
[1739146247429,0.08018216,2646.3,2645.9,7.5521898]
[1739146247635,0.08018216,2646.3,2646.1,3.77909]
[1739146247841,3.77844,2646.6,2646.0,0.55]
[1739146248042,0.08018216,2646.2,2646.0,0.55]
[1739146248244,3.77844,2646.6,2646.0,0.55]
[1739146248445,0.08018216,2646.1,2646.0,0.55]
[1739146248657,3.77844,2646.6,2646.0,4.32918]
[1739146248983,0.08018216,2646.1,2646.0,4.32918]
[1739146249136,3.77818,2646.8,2646.2,3.77886]
[1739146249341,3.77814,2646.8,2646.3,4.7924898]
[1739146249543,3.85849216,2646.7,2646.3,4.7924898]
[1739146250356,0.08018216,2646.7,2646.4,3.77863]
[1739146250553,0.08018216,2646.7,2646.4,0.55]
[1739146250751,3.77809,2646.9,2646.4,0.55]
[1739146251173,0.08018216,2646.8,2646.4,4.3287]
[1739146251562,3.77809,2646.9,2646.4,0.55]
[1739146251762,0.08018216,2646.7,2646.4,0.55]
[1739146251959,3.77809,2646.9,2646.4,0.55]
[1739146252252,3.77809,2646.9,2646.4,4.32868]
[1739146252449,0.08018216,2646.8,2646.4,3.77868]
[1739146252688,3.77837,2646.7,2646.3,4.7924898]
[1739146252986,3.77871,2646.4,2646.3,4.7924898]
[1739146253338,3.77909,2646.2,2645.9,5.5521898]
[1739146253682,3.7788,2646.4,2645.9,5.5521898]
[1739146253883,0.08018216,2646.1,2645.9,5.5521898]
[1739146254090,3.7788,2646.4,2645.9,5.5521898]
[1739146254278,0.08018216,2646.0,2645.9,6.1021898]
[1739146254584,3.77888,2646.3,2645.9,6.1021898]
[1739146254878,0.08018216,2646.2,2645.9,6.1021898]
[1739146255078,3.85922216,2646.2,2645.9,6.1021898]
[1739146255767,0.08018216,2646.2,2646.0,0.55]
[1739146256078,3.77858,2646.5,2646.0,4.32926]
[1739146256246,0.07878502,2646.1,2646.0,4.32926]
[1739146256456,3.77859,2646.5,2646.0,0.55]
[1739146256657,0.07878502,2646.1,2645.9,7.5521898]
[1739146256880,0.7866,2647.1,2645.9,4.7924898]
[1739146257087,3.77914,2646.2,2645.9,4.7924898]
[1739146257289,3.779,2646.2,2645.9,4.7924898]
[1739146257808,0.07738087,2646.1,2645.9,4.7924898]
[1739146257963,3.7789,2646.3,2645.9,4.7924898]
[1739146258160,3.77867,2646.5,2645.9,4.7924898]
[1739146258394,3.7788,2646.4,2645.9,8.5718798]
[1739146258565,0.07733312,2646.3,2646.0,4.32925]
[1739146258764,3.77895,2646.3,2645.9,4.7924898]
[1739146259069,3.77957,2645.8,2645.7,5.441]
[1739146259461,3.85690312,2645.8,2645.7,5.441]
[1739146259657,0.07733312,2645.8,2645.5,4.7924898]
[1739146259864,4.54401,2646.0,2645.5,4.7924898]
[1739146260195,3.77931,2646.0,2645.5,8.5723898]
[1739146260378,0.0770602,2645.9,2645.6,4.32982]
[1739146260709,0.7647,2646.4,2645.8,0.55]
[1739146261003,3.77923,2646.1,2645.6,3.77985]
[1739146261160,0.80300814,2646.4,2645.6,3.77985]
[1739146261161,0.7647,2646.4,2645.9,4.7924898]
[1739146261361,4.5314754,2646.7,2645.9,9.9162198]
[1739146261557,3.85554385,2646.6,2646.1,3.77911]
[1739146262058,0.07707385,2646.6,2646.2,0.55]
[1739146262260,0.07707385,2646.6,2646.3,4.7924898]
[1739146262462,0.07707385,2646.6,2646.4,0.55]
[1739146262680,3.81631814,2646.9,2646.4,4.3287]
[1739146262911,0.07738769,2646.5,2646.4,4.3287]
[1739146263075,3.77801,2646.9,2646.4,4.3287]
[1739146263283,0.07738769,2646.5,2646.4,4.3287]
[1739146263570,3.0,2647.5,2646.4,4.3287]
[1739146263571,0.7647,2647.5,2646.4,0.55]
[1739146263780,3.7774,2647.4,2646.7,3.77827]
[1739146264003,3.77772,2647.1,2646.7,4.7924898]
[1739146264203,3.77787,2647.0,2646.7,4.7924898]
[1739146264380,3.77832,2646.7,2646.3,4.7924898]
[1739146264585,7.55732,2646.5,2646.3,4.7924898]
[1739146264786,0.07738769,2646.4,2646.0,3.55]
[1739146265131,3.77928,2646.0,2645.9,4.7924898]
[1739146265285,3.77928,2646.0,2645.5,4.7924898]
[1739146265286,3.77951,2645.9,2645.5,4.7924898]
[1739146265719,0.07738769,2645.8,2645.5,4.7924898]
[1739146265940,3.77981,2645.7,2645.5,4.7924898]
[1739146266239,3.77981,2645.7,2645.1,4.7924898]
[1739146266240,3.77971,2645.7,2645.1,4.7924898]
[1739146266404,3.78022,2645.4,2645.1,4.7924898]
[1739146266936,0.07738769,2645.3,2645.1,4.7924898]
[1739146267215,3.78,2645.5,2645.1,4.7924898]
[1739146267441,3.78035,2645.3,2645.1,4.7924898]
[1739146267847,0.07673269,2645.2,2645.1,4.7924898]
[1739146268143,3.78015,2645.4,2645.1,5.3424898]
[1739146268369,0.07673269,2645.2,2645.1,9.1230598]
[1739146268569,3.77968,2645.8,2645.2,0.55]